fUSD/lending_fUSD_20241022
["ID","MTS","AMOUNT","RATE_DAILY","PERIOD"]
[340645380,1729589474665,-503.75408225,0.00054794,120]
[340645381,1729589474674,-500.0,0.00054794,120]
[340645382,1729589474689,-500.0,0.00054794,120]
[340645383,1729589474699,-500.0,0.00054794,120]
[340645384,1729589474708,-500.0,0.00054794,120]
[340645385,1729589474717,-500.0,0.00054794,120]
[340645386,1729589474727,-500.0,0.00054794,120]
[340645387,1729589474736,-635.23427496,0.00054794,120]
[340645388,1729589474746,-408.23155765,0.00054794,120]
[340645389,1729589474755,-500.0,0.00054794,120]
[340645390,1729589474765,-500.0,0.00054794,120]
[340645391,1729589474774,-500.0,0.00054794,120]
[340645392,1729589474784,-500.0,0.00054794,120]
[340645393,1729589474793,-500.0,0.00054794,120]
[340645394,1729589474803,-500.0,0.00054794,120]
[340645395,1729589474812,-500.0,0.00054794,120]
[340645396,1729589474821,-500.0,0.00054794,120]
[340645397,1729589474830,-500.0,0.00054794,120]
[340645398,1729589474840,-500.2545959,0.00054794,120]
[340645399,1729589474849,-500.0,0.00054794,120]
[340645400,1729589474859,-500.0,0.00054794,120]
[340645401,1729589474868,-500.0,0.00054794,120]
[340645402,1729589474878,-500.0,0.00054794,120]
[340645403,1729589474889,-500.0,0.00054794,120]
[340645404,1729589474898,-500.0,0.00054794,120]
[340645405,1729589474907,-500.0,0.00054794,120]
[340645406,1729589474917,-500.0,0.00054794,120]
[340645407,1729589474926,-500.0,0.00054794,120]
[340645408,1729589474939,-500.0,0.00054794,120]
[340645409,1729589474947,-603.83163656,0.00054794,120]
[340645410,1729589474957,-500.0,0.00054794,120]
[340645411,1729589474966,-500.0,0.00054794,120]
[340645412,1729589474976,-567.3,0.00054794,120]
[340645413,1729589474985,-584.0,0.00054794,120]
[340645414,1729589474994,-500.0,0.00054794,120]
[340645415,1729589475004,-300.0,0.00054794,120]
[340645416,1729589475013,-500.0,0.00054794,120]
[340645417,1729589475023,-500.0,0.00054794,120]
[340645418,1729589475032,-508.59429456,0.00054794,120]
[340645419,1729589475042,-500.0,0.00054794,120]
[340645420,1729589475051,-500.0,0.00054794,120]
[340645421,1729589475060,-500.0,0.00054794,120]
[340645422,1729589475070,-500.0,0.00054794,7]
[340645423,1729589475080,-307.39858461,0.00054794,120]
[340645424,1729589475089,-500.0,0.00054794,120]
[340645425,1729589475099,-500.0,0.00054794,120]
[340645426,1729589475109,-500.0,0.00054794,120]
[340645427,1729589475119,-500.0,0.00054794,120]
[340645428,1729589475128,-500.0,0.00054794,120]
[340645429,1729589475137,-505.71276096,0.00054794,120]
[340645430,1729589475147,-150.0,0.00054794,120]
[340645431,1729589475156,-500.0,0.00054794,120]
[340645432,1729589475166,-500.76370144,0.00054794,120]
[340645433,1729589475175,-500.0,0.00054794,60]
[340645434,1729589475191,-500.0,0.00054794,7]
[340645435,1729589475200,-500.0,0.00054794,90]
[340645436,1729589475209,-1000.0,0.00054794,120]
[340645437,1729589475219,-1000.0,0.00054794,120]
[340645438,1729589475228,-500.0,0.00054794,120]
[340645439,1729589475238,-500.0,0.00054794,120]
[340645440,1729589475247,-500.0,0.00054794,120]
[340645441,1729589475256,-504.10223532,0.00054794,120]
[340645442,1729589475266,-600.0,0.00054794,120]
[340645443,1729589475275,-150.0,0.00054795,120]
[340645444,1729589475284,-150.0,0.00054795,120]
[340645445,1729589475294,-150.1500838,0.00054795,120]
[340645446,1729589475303,-154.34647774,0.00054795,120]
[340645447,1729589475313,-156.57788815,0.00054795,120]
[340645448,1729589475324,-276.59213043,0.00054795,120]
[340645449,1729589475334,-151.75670618,0.00054795,120]
[340645450,1729589475344,-243.638909,0.00054795,30]
[340645451,1729589475353,-500.19593522,0.00054801,60]
[340645452,1729589475364,-500.0,0.0005483,60]
[340645453,1729589475374,-834.36674064,0.00054844,120]
[340645454,1729589475384,-4394.5387741,0.00054848,120]
[340645455,1729589475394,-571.03936395,0.00054853,120]
[340645456,1729589475405,-571.03936395,0.00054855,120]
[340645457,1729589475415,-4394.5387741,0.0005486,120]
[340645458,1729589475425,-2431.94930372,0.00054868,120]
[340645459,1729589475440,-2431.94930372,0.00054871,120]
[340645460,1729589475450,-675.83705995,0.00054877,120]
[340645461,1729589475459,-6102.1180839,0.000549,120]
[340645462,1729589475468,-30714.19475206,0.00054924,120]
[340645463,1729589475478,-332.0528468,0.00054933,120]
[340645464,1729589475487,-46735.9656135,0.00054962,2]
[340645465,1729589475496,-45704.3318933,0.00054962,2]
[340645466,1729589475505,-4044.3648965,0.00054962,2]
[340645467,1729589475514,-3955.0909691,0.00054962,2]
[340645468,1729589475523,-6150.291949,0.00054962,2]
[340645469,1729589475533,-6003.4744509,0.00054962,2]
[340645470,1729589475542,-30714.19475206,0.00054962,120]
[340645471,1729589475551,-332.0528468,0.00054974,120]
[340645472,1729589475560,-2431.94930372,0.00054975,120]
[340645473,1729589475571,-3030.71162559,0.00054977,120]
[340645474,1729589475580,-3030.71162559,0.00054979,120]
[340645475,1729589475590,-4394.5387741,0.00054983,120]
[340645476,1729589475599,-3030.71162559,0.00054984,120]
[340645477,1729589475608,-500.0,0.00054986,120]
[340645478,1729589475618,-500.0,0.00054986,120]
[340645479,1729589475627,-500.0,0.00054986,120]
[340645480,1729589475636,-500.0,0.00054986,120]
[340645481,1729589475645,-500.0,0.00054986,120]
[340645482,1729589475655,-500.0,0.00054986,120]
[340645483,1729589475664,-500.0,0.00054986,120]
[340645484,1729589475673,-500.000001,0.00054986,120]
[340645485,1729589475685,-500.0,0.00054986,120]
[340645486,1729589475695,-500.0,0.00054986,120]
[340645487,1729589475705,-500.0,0.00054986,120]
[340645488,1729589475715,-500.0,0.00054986,120]
[340645489,1729589475724,-500.0,0.00054986,120]
[340645490,1729589475734,-318.4533052,0.00054986,120]
[340645491,1729589475743,-502.26537175,0.00054986,120]
[340645492,1729589475752,-500.0,0.00054986,120]
[340645493,1729589475762,-500.0,0.00054986,120]
[340645494,1729589475771,-500.0,0.00054986,7]
[340645495,1729589475780,-500.0,0.00054986,120]
[340645496,1729589475789,-500.0,0.00054986,120]
[340645497,1729589475798,-500.0,0.00054986,120]
[340645498,1729589475808,-500.0,0.00054986,120]
[340645499,1729589475817,-168.15909725,0.00054986,120]
[340645500,1729589475827,-500.0,0.00054986,120]
[340645501,1729589475836,-500.0,0.00054986,60]
[340645502,1729589475845,-500.0,0.00054986,7]
[340645503,1729589475854,-500.0,0.00054986,90]
[340645504,1729589475937,-1000.0,0.00054986,120]
[340645505,1729589475947,-1009.56955953,0.00054986,120]
[340645506,1729589475957,-500.0,0.00054986,120]
[340645507,1729589475966,-500.0,0.00054986,120]
[340645508,1729589475976,-500.0,0.00054986,120]
[340645509,1729589475985,-600.0,0.00054986,120]
[340645510,1729589475995,-30714.19475206,0.00054987,120]
[340645511,1729589476004,-571.03936395,0.00054987,120]
[340645512,1729589476014,-50000.0,0.00055,55]
[340645513,1729589476024,-424.81415709,0.00055,62]
[340645514,1729589476033,-3000.0,0.00055,120]
[340645515,1729589476042,-543.09459277,0.00055,120]
[340645516,1729589476051,-156.49,0.00055,120]
[340645517,1729589476060,-500000.0,0.00055,120]
[340645518,1729589476070,-500000.0,0.00055,120]
[340645519,1729589476080,-4996578.32980794,0.00055,120]
[340645520,1729589476089,-13189.70877596,0.00055,120]
[340645521,1729589476099,-12501.06454337,0.00055,5]
[340645522,1729589476109,-200.6477921,0.00055,120]
[340645523,1729589476118,-83590.0,0.00055,15]
[340645524,1729589476129,-50540.4429181,0.00055,30]
[340645525,1729589476138,-208.24366734,0.00055,120]
[340645526,1729589476148,-400.0,0.00055,120]
[340645527,1729589476158,-22500.0,0.00055,30]
[340645528,1729589476168,-25898.47054328,0.00055,120]
[340645529,1729589476177,-500.0,0.00055088,120]
[340645530,1729589476191,-555.95,0.00055178,120]
[340645531,1729589476200,-500.0,0.00055178,120]
[340645532,1729589476210,-500.0,0.00055178,120]
[340645533,1729589476219,-500.0,0.00055178,120]
[340645534,1729589476229,-500.0,0.00055178,120]
[340645535,1729589476238,-500.0,0.00055178,120]
[340645536,1729589476248,-500.0,0.00055178,120]
[340645537,1729589476257,-530.36,0.00055178,120]
[340645538,1729589476267,-500.0,0.00055178,120]
[340645539,1729589476276,-500.0,0.00055178,120]
[340645540,1729589476285,-500.0,0.00055178,120]
[340645541,1729589476294,-500.0,0.00055178,120]
[340645542,1729589476304,-500.0,0.00055178,120]
[340645543,1729589476314,-500.0,0.00055178,7]
[340645544,1729589476325,-500.0,0.00055178,120]
[340645545,1729589476335,-500.0,0.00055178,120]
[340645546,1729589476344,-500.0,0.00055178,120]
[340645547,1729589476354,-500.0,0.00055178,120]
[340645548,1729589476363,-500.0,0.00055178,60]
[340645549,1729589476372,-500.0,0.00055178,7]
[340645550,1729589476381,-500.0,0.00055178,90]
[340645551,1729589476391,-1000.0,0.00055178,120]
[340645552,1729589476401,-500.0,0.00055178,120]
[340645553,1729589476410,-500.0,0.00055178,120]
[340645554,1729589476420,-500.0,0.00055178,120]
[340645555,1729589476429,-600.0,0.00055178,120]
[340645556,1729589476443,-152.0,0.00055234,5]
[340645557,1729589476453,-500.0,0.0005527,120]
[340645558,1729589476462,-535.8,0.00055286,30]
[340645559,1729589476471,-535.8,0.00055286,30]
[340645560,1729589476480,-535.8,0.00055286,30]
[340645561,1729589476490,-535.8,0.00055286,30]
[340645562,1729589476499,-500.0,0.00055315,120]
[340645563,1729589476508,-500.0,0.00055345,120]
[340645564,1729589476517,-453.7,0.00055369,120]
[340645565,1729589476527,-500.0,0.00055369,120]
[340645566,1729589476536,-500.0,0.00055369,120]
[340645567,1729589476545,-500.0,0.00055369,120]
[340645568,1729589476555,-500.0,0.00055369,120]
[340645569,1729589476565,-500.0,0.00055369,120]
[340645570,1729589476575,-202.31,0.00055369,120]
[340645571,1729589476584,-500.0,0.00055369,120]
[340645572,1729589476593,-500.0,0.00055369,120]
[340645573,1729589476602,-226.68,0.00055369,120]
[340645574,1729589476611,-634.45,0.00055369,120]
[340645575,1729589476621,-500.0,0.00055369,7]
[340645576,1729589476630,-500.0,0.00055369,120]
[340645577,1729589476639,-500.0,0.00055369,120]
[340645578,1729589476649,-500.0,0.00055369,120]
[340645579,1729589476658,-500.0,0.00055369,120]
[340645580,1729589476667,-500.0,0.00055369,60]
[340645581,1729589476677,-500.0,0.00055369,90]
[340645582,1729589476689,-1000.0,0.00055369,120]
[340645583,1729589476698,-500.0,0.00055369,120]
[340645584,1729589476707,-500.0,0.00055369,120]
[340645585,1729589476716,-500.0,0.00055369,120]
[340645586,1729589476725,-600.0,0.00055369,120]
[340645587,1729589476734,-500.0,0.00055475,120]
[340645588,1729589476744,-151.0,0.00055479,120]
[340645589,1729589476753,-500000.0,0.000555,120]
[340645590,1729589476762,-500.0,0.00055561,120]
[340645591,1729589476771,-500.0,0.00055561,120]
[340645592,1729589476780,-500.0,0.00055561,120]
[340645593,1729589476789,-500.0,0.00055561,120]
[340645594,1729589476798,-500.0,0.00055561,120]
[340645595,1729589476808,-498.38,0.00055561,120]
[340645596,1729589476817,-500.0,0.00055561,120]
[340645597,1729589476826,-553.55,0.00055561,7]
[340645598,1729589476835,-500.0,0.00055561,120]
[340645599,1729589476844,-500.0,0.00055561,120]
[340645600,1729589476855,-500.0,0.00055561,120]
[340645601,1729589476864,-500.0,0.00055561,120]
[340645602,1729589476873,-500.0,0.00055561,60]
[340645603,1729589476883,-478.1569315,0.00055561,90]
[340645604,1729589476892,-1000.0,0.00055561,120]
[340645605,1729589476902,-500.0,0.00055561,120]
[340645606,1729589476911,-500.0,0.00055561,120]
[340645607,1729589476921,-500.0,0.00055561,120]
[340645608,1729589476930,-600.0,0.00055561,120]
[340645609,1729589476940,-177.05196,0.000556,120]
[340645610,1729589476950,-535.8,0.00055606,30]
[340645611,1729589476960,-278.85,0.00055616,120]
[340645612,1729589476969,-500.0,0.00055636,120]
[340645613,1729589476979,-150.0,0.0005566,120]
[340645614,1729589476988,-210.0,0.0005569,30]
[340645615,1729589476998,-207.0,0.0005569,120]
[340645616,1729589477007,-924.0,0.00055746,120]
[340645617,1729589477016,-500.0,0.00055753,120]
[340645618,1729589477025,-500.0,0.00055753,120]
[340645619,1729589477034,-500.0,0.00055753,120]
[340645620,1729589477044,-500.0,0.00055753,120]
[340645621,1729589477053,-500.0,0.00055753,120]
[340645622,1729589477062,-500.0,0.00055753,120]
[340645623,1729589477071,-500.0,0.00055753,120]
[340645624,1729589477081,-500.0,0.00055753,120]
[340645625,1729589477091,-500.0,0.00055753,120]
[340645626,1729589477100,-500.0,0.00055753,120]
[340645627,1729589477109,-500.0,0.00055753,60]
[340645628,1729589477118,-1000.0,0.00055753,120]
[340645629,1729589477128,-500.0,0.00055753,120]
[340645630,1729589477137,-500.0,0.00055753,120]
[340645631,1729589477148,-500.0,0.00055753,120]
[340645632,1729589477158,-600.0,0.00055753,120]
[340645633,1729589477167,-163.75,0.00055885,120]
[340645634,1729589477177,-500.0,0.00055925,120]
[340645635,1729589477189,-500.0,0.00055945,120]
[340645636,1729589477199,-500.0,0.00055945,120]
[340645637,1729589477208,-500.0,0.00055945,120]
[340645638,1729589477217,-166.414416,0.00055945,120]
[340645639,1729589477227,-500.0,0.00055945,120]
[340645640,1729589477237,-160.98,0.00055945,120]
[340645641,1729589477247,-500.0,0.00055945,120]
[340645642,1729589477333,-363.34,0.00055945,120]
[340645643,1729589477342,-500.0,0.00055945,120]
[340645644,1729589477351,-500.0,0.00055945,120]
[340645645,1729589477361,-479.39127181,0.00055945,60]
[340645646,1729589477370,-1000.0,0.00055945,120]
[340645647,1729589477379,-500.0,0.00055945,120]
[340645648,1729589477388,-500.0,0.00055945,120]
[340645649,1729589477398,-500.0,0.00055945,120]
[340645650,1729589477407,-600.0,0.00055945,120]
[340645651,1729589477416,-50000.0,0.00056,56]
[340645652,1729589477425,-500000.0,0.00056,120]
[340645653,1729589477438,-500000.0,0.00056,120]
[340645654,1729589477447,-4181.60527147,0.00056,120]
[340645655,1729589477457,-580.0,0.00056,14]
[340645656,1729589477466,-200.0,0.00056,120]
[340645657,1729589477476,-459.46,0.00056136,120]
[340645658,1729589477485,-208.16,0.00056136,120]
[340645659,1729589477494,-500.0,0.00056136,120]
[340645660,1729589477504,-500.0,0.00056136,120]
[340645661,1729589477514,-500.0,0.00056136,120]
[340645662,1729589477523,-500.0,0.00056136,120]
[340645663,1729589477532,-500.0,0.00056136,120]
[340645664,1729589477542,-1000.0,0.00056136,120]
[340645665,1729589477551,-500.0,0.00056136,120]
[340645666,1729589477561,-500.0,0.00056136,120]
[340645667,1729589477571,-500.0,0.00056136,120]
[340645668,1729589477581,-600.0,0.00056136,120]
[340645669,1729589477590,-500.0,0.00056151,120]
[340645670,1729589477600,-381.36,0.00056328,120]
[340645671,1729589477609,-500.0,0.00056328,120]
[340645672,1729589477618,-500.0,0.00056328,120]
[340645673,1729589477627,-500.0,0.00056328,120]
[340645674,1729589477637,-500.0,0.00056328,120]
[340645675,1729589477646,-1000.0,0.00056328,120]
[340645676,1729589477656,-500.0,0.00056328,120]
[340645677,1729589477665,-500.0,0.00056328,120]
[340645678,1729589477675,-500.0,0.00056328,120]
[340645679,1729589477686,-600.0,0.00056328,120]
[340645680,1729589477696,-151.0,0.00056329,120]
[340645681,1729589477705,-3155.95432,0.000564,120]
[340645682,1729589477714,-150.0,0.000564,120]
[340645683,1729589477724,-44672.6981732,0.00056461,2]
[340645684,1729589477733,-3865.8170416,0.00056461,2]
[340645685,1729589477744,-5856.6569527,0.00056461,2]
[340645686,1729589477753,-50000.0,0.000565,66]
[340645687,1729589477762,-788842.66,0.000565,120]
[340645688,1729589477772,-500000.0,0.000565,120]
[340645689,1729589477781,-500.0,0.00056519,120]
[340645690,1729589477790,-500.0,0.0005652,120]
[340645691,1729589477800,-500.0,0.0005652,120]
[340645692,1729589477810,-500.0,0.0005652,120]
[340645693,1729589477819,-500.0,0.0005652,120]
[340645694,1729589477828,-1000.0,0.0005652,120]
[340645695,1729589477837,-500.0,0.0005652,120]
[340645696,1729589477847,-500.0,0.0005652,120]
[340645697,1729589477856,-500.0,0.0005652,120]
[340645698,1729589477866,-600.0,0.0005652,120]
[340645699,1729589477875,-1648.35301083,0.00056686,120]
[340645700,1729589477885,-487.32571255,0.00056712,120]
[340645701,1729589477894,-500.0,0.00056712,120]
[340645702,1729589477905,-500.0,0.00056712,120]
[340645703,1729589477915,-500.0,0.00056712,120]
[340645704,1729589477926,-1000.0,0.00056712,120]
[340645705,1729589477941,-438.03560838,0.00056712,120]
[340645706,1729589477960,-500.0,0.00056712,120]
[340645707,1729589477977,-500.0,0.00056712,120]
[340645708,1729589477996,-600.0,0.00056712,120]
[340645709,1729589478018,-150.0,0.00056814,120]
[340645710,1729589478033,-3583.06585587,0.0005688,30]
[340645711,1729589478051,-217.32,0.00056904,120]
[340645712,1729589478065,-500.0,0.00056904,120]
[340645713,1729589478083,-500.0,0.00056904,120]
[340645714,1729589478103,-1000.0,0.00056904,120]
[340645715,1729589478122,-500.0,0.00056904,120]
[340645716,1729589478134,-500.0,0.00056904,120]
[340645717,1729589478153,-600.0,0.00056904,120]
[340645718,1729589478169,-763.38166173,0.00056908,120]
[340645719,1729589478184,-171.21955957,0.00057,30]
[340645720,1729589478199,-1000.0,0.00057,120]
[340645721,1729589478214,-500000.0,0.00057,120]
[340645722,1729589478229,-500000.0,0.00057,120]
[340645723,1729589478244,-558971.07585318,0.00057,120]
[340645724,1729589478260,-400.0,0.00057,120]
[340645725,1729589478275,-300.0,0.00057,120]
[340645726,1729589478290,-500.0,0.00057095,120]
[340645727,1729589478305,-500.0,0.00057095,120]
[340645728,1729589478320,-1000.0,0.00057095,120]
[340645729,1729589478337,-500.0,0.00057095,120]
[340645730,1729589478351,-500.0,0.00057095,120]
[340645731,1729589478366,-600.0,0.00057095,120]
[340645732,1729589478381,-210.0,0.0005717,30]
[340645733,1729589478395,-207.0,0.0005717,120]
[340645734,1729589478411,-205.0,0.0005717,120]
[340645735,1729589478424,-151.0,0.00057178,120]
[340645736,1729589478440,-150.102214,0.00057198,120]
[340645737,1729589478454,-500.0,0.00057287,120]
[340645738,1729589478469,-500.0,0.00057287,120]
[340645739,1729589478484,-1000.0,0.00057287,120]
[340645740,1729589478498,-500.0,0.00057287,120]
[340645741,1729589478512,-500.0,0.00057287,120]
[340645742,1729589478526,-600.0,0.00057287,120]
[340645743,1729589478540,-150.102214,0.00057298,120]
[340645744,1729589478554,-5000.000001,0.000573,30]
[340645745,1729589478571,-150.102214,0.00057398,120]
[340645746,1729589478585,-520.41364006,0.00057479,120]
[340645747,1729589478599,-500.0,0.00057479,120]
[340645748,1729589478614,-1000.0,0.00057479,120]
[340645749,1729589478628,-500.0,0.00057479,120]
[340645750,1729589478642,-500.0,0.00057479,120]
[340645751,1729589478656,-600.0,0.00057479,120]
[340645752,1729589478670,-150.102214,0.00057498,120]
[340645753,1729589478686,-195.0418188,0.000575,120]
[340645754,1729589478700,-10000.0,0.000575,120]
[340645755,1729589478716,-7018.73472474,0.000575,120]
[340645756,1729589478730,-1118.0,0.000575,120]
[340645757,1729589478744,-21020.07470694,0.000575,120]
[340645758,1729589478758,-500000.0,0.000575,120]
[340645759,1729589478775,-177.05196,0.000575,120]
[340645760,1729589478790,-250.0,0.000575,120]
[340645761,1729589478806,-303.8,0.000575,120]
[340645762,1729589478819,-500000.0,0.000575,120]
[340645763,1729589478834,-50000.0,0.00057534,57]
[340645764,1729589478848,-494.55487238,0.00057534,120]
[340645765,1729589478862,-500.0,0.00057534,60]
[340645766,1729589478876,-500.0,0.00057534,60]
[340645767,1729589478890,-385.74403312,0.00057534,60]
[340645768,1729589479042,-500.0,0.00057534,120]
[340645769,1729589479052,-500.0,0.00057534,120]
[340645770,1729589479062,-540.14104484,0.00057534,120]
[340645771,1729589479072,-500.0,0.00057534,120]
[340645772,1729589479081,-500.0,0.00057534,120]
[340645773,1729589479091,-500.0,0.00057534,120]
[340645774,1729589479100,-501.82213112,0.00057534,120]
[340645775,1729589479110,-422.2,0.00057534,120]
[340645776,1729589479119,-500.0,0.00057534,120]
[340645777,1729589479129,-500.0,0.00057534,120]
[340645778,1729589479138,-500.0,0.00057534,120]
[340645779,1729589479148,-500.0,0.00057534,120]
[340645780,1729589479157,-500.0,0.00057534,120]
[340645781,1729589479166,-500.0,0.00057534,120]
[340645782,1729589479176,-500.0,0.00057534,120]
[340645783,1729589479187,-500.0,0.00057534,120]
[340645784,1729589479197,-500.0,0.00057534,120]
[340645785,1729589479207,-566.71431559,0.00057534,120]
[340645786,1729589479216,-500.0,0.00057534,120]
[340645787,1729589479225,-500.0,0.00057534,120]
[340645788,1729589479235,-500.0,0.00057534,120]
[340645789,1729589479245,-500.0,0.00057534,120]
[340645790,1729589479254,-537.17334111,0.00057534,120]
[340645791,1729589479263,-500.0,0.00057534,120]
[340645792,1729589479273,-500.0,0.00057534,120]
[340645793,1729589479282,-528.57774658,0.00057534,120]
[340645794,1729589479291,-500.0,0.00057534,120]
[340645795,1729589479301,-500.0,0.00057534,120]
[340645796,1729589479311,-544.71560416,0.00057534,120]
[340645797,1729589479321,-500.0,0.00057534,120]
[340645798,1729589479335,-500.0,0.00057534,120]
[340645799,1729589479345,-500.0,0.00057534,120]
[340645800,1729589479354,-500.0,0.00057534,120]
[340645801,1729589479364,-523.24042928,0.00057534,120]
[340645802,1729589479374,-507.07002585,0.00057534,120]
[340645803,1729589479384,-500.94344211,0.00057534,120]
[340645804,1729589479394,-528.28286342,0.00057534,120]
[340645805,1729589479403,-500.0,0.00057534,120]
[340645806,1729589479413,-500.0,0.00057534,120]
[340645807,1729589479423,-500.0,0.00057534,120]
[340645808,1729589479432,-605.222535,0.00057534,120]
[340645809,1729589479443,-500.0,0.00057534,120]
[340645810,1729589479452,-500.0,0.00057534,120]
[340645811,1729589479462,-500.0,0.00057534,120]
[340645812,1729589479471,-500.0,0.00057534,120]
[340645813,1729589479481,-500.0,0.00057534,120]
[340645814,1729589479491,-500.0,0.00057534,120]
[340645815,1729589479500,-500.0,0.00057534,120]
[340645816,1729589479510,-500.0,0.00057534,120]
[340645817,1729589479519,-500.0,0.00057534,120]
[340645818,1729589479529,-500.0,0.00057534,120]
[340645819,1729589479539,-500.0,0.00057534,120]
[340645820,1729589479549,-500.0,0.00057534,120]
[340645821,1729589479558,-500.0,0.00057534,120]
[340645822,1729589479569,-500.0,0.00057534,120]
[340645823,1729589479578,-500.0,0.00057534,120]
[340645824,1729589479587,-500.0,0.00057534,120]
[340645825,1729589479597,-500.0,0.00057534,120]
[340645826,1729589479607,-500.0,0.00057534,120]
[340645827,1729589479616,-500.0,0.00057534,120]
[340645828,1729589479626,-500.0,0.00057534,120]
[340645829,1729589479635,-500.0,0.00057534,120]
[340645830,1729589479645,-500.0,0.00057534,120]
[340645831,1729589479654,-284.73038584,0.00057534,120]
[340645832,1729589479663,-500.0,0.00057534,120]
[340645833,1729589479673,-500.0,0.00057534,120]
[340645834,1729589479685,-500.0,0.00057534,120]
[340645835,1729589479694,-500.0,0.00057534,120]
[340645836,1729589479703,-500.0,0.00057534,120]
[340645837,1729589479712,-523.54060611,0.00057534,120]
[340645838,1729589479722,-503.97422797,0.00057534,120]
[340645839,1729589479731,-500.0,0.00057534,120]
[340645840,1729589479741,-525.09152464,0.00057534,120]
[340645841,1729589479751,-500.0,0.00057534,120]
[340645842,1729589479760,-500.0,0.00057534,120]
[340645843,1729589479770,-500.0,0.00057534,120]
[340645844,1729589479779,-500.0,0.00057534,120]
[340645845,1729589479788,-500.0,0.00057534,120]
[340645846,1729589479798,-500.0,0.00057534,120]
[340645847,1729589479808,-500.0,0.00057534,120]
[340645848,1729589479817,-500.0,0.00057534,120]
[340645849,1729589479826,-500.0,0.00057534,120]
[340645850,1729589479835,-500.0,0.00057534,120]
[340645851,1729589479844,-500.0,0.00057534,120]
[340645852,1729589479853,-500.0,0.00057534,120]
[340645853,1729589479863,-500.0,0.00057534,120]
[340645854,1729589479873,-500.0,0.00057534,120]
[340645855,1729589479882,-541.84032104,0.00057534,120]
[340645856,1729589479892,-500.0,0.00057534,120]
[340645857,1729589479901,-500.0,0.00057534,120]
[340645858,1729589479910,-500.0,0.00057534,120]
[340645859,1729589479919,-500.0,0.00057534,120]
[340645860,1729589479928,-500.0,0.00057534,120]
[340645861,1729589479939,-500.0,0.00057534,120]
[340645862,1729589479949,-500.0,0.00057534,120]
[340645863,1729589479959,-516.72877329,0.00057534,120]
[340645864,1729589479968,-500.0,0.00057534,120]
[340645865,1729589479978,-500.0,0.00057534,120]
[340645866,1729589479987,-500.0,0.00057534,120]
[340645867,1729589479996,-500.0,0.00057534,120]
[340645868,1729589480006,-500.0,0.00057534,120]
[340645869,1729589480015,-500.0,0.00057534,120]
[340645870,1729589480025,-500.0,0.00057534,120]
[340645871,1729589480034,-500.0,0.00057534,120]
[340645872,1729589480044,-349.7557442,0.00057534,120]
[340645873,1729589480054,-512.88475075,0.00057534,120]
[340645874,1729589480064,-234.31078263,0.00057534,120]
[340645875,1729589480073,-530.08990407,0.00057534,120]
[340645876,1729589480083,-500.0,0.00057534,120]
[340645877,1729589480092,-500.0,0.00057534,120]
[340645878,1729589480101,-618.75056115,0.00057534,120]
[340645879,1729589480111,-506.68296295,0.00057534,120]